bitfinex/quotes_BTCUSD_20241101
["timestamp","ask_amount","ask_price","bid_price","bid_amount"]
[1730471344558,0.000792,71568.0,71550.0,0.19698138]
[1730471344559,0.2096861,71561.0,71550.0,0.19698138]
[1730471344753,0.2096861,71553.0,71535.0,0.3096861]
[1730471344979,0.023,71551.0,71535.0,0.3494771]
[1730471345224,0.2096861,71561.0,71550.0,0.002]
[1730471345425,0.2096861,71552.0,71550.0,0.002]
[1730471345625,0.2096861,71560.0,71541.0,0.19698138]
[1730471345840,0.139749,71557.0,71541.0,0.19698138]
[1730471346051,0.2096861,71560.0,71536.0,0.13845525]
[1730471346260,0.139745,71559.0,71536.0,0.13845525]
[1730471346484,0.279493,71558.0,71536.0,0.13845525]
[1730471346709,0.139748,71558.0,71536.0,0.13845525]
[1730471346917,0.139747,71558.0,71536.0,0.13845525]
[1730471347133,0.2096861,71552.0,71536.0,0.13845525]
[1730471347543,0.2096861,71552.0,71541.0,0.002]
[1730471348162,0.139761,71551.0,71535.0,0.2096861]
[1730471348484,0.279507,71555.0,71536.0,0.002]
[1730471348690,0.2096861,71552.0,71536.0,0.002]
[1730471348845,0.3494451,71552.0,71534.0,0.19698138]
[1730471349067,0.2096861,71552.0,71535.0,0.139791]
[1730471349252,0.2096861,71552.0,71541.0,0.002]
[1730471349664,0.06276483,71551.0,71541.0,0.002]
[1730471349910,0.13845525,71552.0,71541.0,0.002]
[1730471350114,0.139766,71548.0,71541.0,0.002]
[1730471350621,0.139766,71548.0,71532.0,0.139796]
[1730471350760,0.139766,71548.0,71534.0,0.002]
[1730471351390,0.00209799,71562.0,71535.0,0.2096861]
[1730471351607,0.2096861,71550.0,71536.0,0.279579]
[1730471351829,0.2096861,71550.0,71541.0,0.002]
[1730471352045,0.000823,71551.0,71550.0,0.139762]
[1730471352264,0.000823,71551.0,71547.0,0.19698138]
[1730471352463,0.139764,71549.0,71533.0,0.33677538]
[1730471352689,0.000823,71551.0,71534.0,0.2113321]
[1730471352690,0.13845525,71548.0,71534.0,0.2113321]
[1730471352924,0.13845525,71548.0,71534.0,0.001646]
[1730471353166,0.139791,71535.0,71534.0,0.001646]
[1730471353571,0.279577,71537.0,71534.0,0.001646]
[1730471353833,0.139785,71539.0,71534.0,0.001646]
[1730471354034,0.2096861,71547.0,71534.0,0.001646]
[1730471354353,0.2096861,71547.0,71535.0,0.002]
[1730471354667,0.3494541,71547.0,71535.0,0.002]
[1730471354867,0.13977,71546.0,71534.0,0.001646]
[1730471355069,0.2096861,71547.0,71534.0,0.001646]
[1730471355202,0.13845525,71545.0,71534.0,0.003646]
[1730471355638,0.13845525,71545.0,71534.0,0.001646]
[1730471355838,0.279552,71543.0,71534.0,0.001646]
[1730471356126,0.139778,71542.0,71535.0,0.002]
[1730471356753,0.13845525,71545.0,71535.0,0.002]
[1730471357153,0.139775,71544.0,71535.0,0.002]
[1730471357353,0.279554,71543.0,71534.0,0.001646]
[1730471357554,0.13845525,71545.0,71534.0,0.003646]
[1730471357778,0.139782,71540.0,71534.0,0.003646]
[1730471358003,0.139781,71541.0,71534.0,0.003646]
[1730471358231,0.139781,71541.0,71534.0,0.001646]
[1730471358432,0.34814135,71541.0,71535.0,0.002]
[1730471358552,0.139789,71536.0,71535.0,0.002]
[1730471358947,0.139789,71536.0,71534.0,0.001646]
[1730471359193,0.139783,71540.0,71534.0,0.001646]
[1730471359398,0.139783,71540.0,71534.0,0.003646]
[1730471359634,0.100823,71551.0,71534.0,0.003646]
[1730471359784,0.139781,71541.0,71534.0,0.003646]
[1730471360410,0.139776,71543.0,71534.0,0.003646]
[1730471360597,0.1,71548.0,71534.0,0.003646]
[1730471360801,0.279552,71543.0,71525.0,0.279621]
[1730471361003,0.139778,71542.0,71534.0,0.002]
[1730471361239,0.3494611,71544.0,71534.0,0.002]
[1730471361416,0.4892371,71544.0,71534.0,0.002]
[1730471361618,0.2096861,71544.0,71525.0,0.13845525]
[1730471361823,0.2096861,71544.0,71522.0,0.3495021]
[1730471361824,0.279556,71542.0,71534.0,0.002]
[1730471362045,0.139791,71535.0,71534.0,0.002]
[1730471362522,0.13845525,71535.0,71514.0,0.2096861]
[1730471362737,0.19698138,71533.0,71514.0,0.2096861]
[1730471362949,0.19698138,71533.0,71510.0,0.0939]
[1730471362950,0.2096861,71531.0,71510.0,0.0939]
[1730471363156,0.19698138,71526.0,71511.0,0.2096861]
[1730471363355,0.19698138,71526.0,71508.0,0.0779]
[1730471363356,0.139813,71524.0,71503.0,0.2096861]
[1730471363563,0.12419117,71587.0,71503.0,0.2096861]
[1730471363764,0.139821,71520.0,71519.0,0.2096861]
[1730471364425,0.279633,71523.0,71517.0,0.002]
[1730471364655,0.279618,71526.0,71517.0,0.002]
[1730471364840,0.139824,71519.0,71517.0,0.002]
[1730471365061,0.139824,71518.0,71511.0,0.2096861]
[1730471365265,0.139823,71519.0,71511.0,0.2096861]
[1730471365455,0.139828,71517.0,71511.0,0.2096861]
[1730471365678,0.139825,71518.0,71511.0,0.2096861]
[1730471365918,0.139825,71518.0,71503.0,0.34814135]
[1730471366132,0.279634,71522.0,71503.0,0.34814135]
[1730471366289,0.2096861,71524.0,71503.0,0.34814135]
[1730471366500,0.699075,71523.0,71503.0,0.34814135]
[1730471366694,0.13845525,71525.0,71503.0,0.34814135]
[1730471366906,0.19698138,71534.0,71511.0,0.2096861]
[1730471367115,0.2096861,71529.0,71511.0,0.2096861]
[1730471367313,0.13845525,71528.0,71513.0,0.2096861]
[1730471368905,0.13845525,71528.0,71513.0,0.2116861]
[1730471369461,0.139818,71522.0,71513.0,0.2116861]
[1730471369607,0.279602,71530.0,71513.0,0.2116861]
[1730471369811,0.1,71536.0,71514.0,0.30945183]
[1730471370014,0.1,71536.0,71514.0,0.30665525]
[1730471370015,0.131601,71530.0,71514.0,0.30665525]
[1730471370201,0.03928986,71592.0,71521.0,0.2096861]
[1730471370408,0.03928986,71592.0,71518.0,0.139822]
[1730471370409,0.1,71543.0,71514.0,0.30665525]
[1730471370610,0.77900613,71586.0,71514.0,0.30665525]
[1730471370611,0.279571,71539.0,71524.0,0.2096861]
[1730471370819,0.139784,71539.0,71525.0,0.02808]
[1730471371029,0.139784,71539.0,71524.0,0.2096861]
[1730471371228,0.279563,71541.0,71524.0,0.2096861]
[1730471371447,0.279516,71552.0,71525.0,0.13845525]
[1730471371648,0.279516,71552.0,71533.0,0.0811]
[1730471371649,0.139774,71544.0,71533.0,0.0811]
[1730471371857,0.13978,71541.0,71533.0,0.0811]
[1730471372093,0.13845525,71551.0,71533.0,0.0811]
[1730471372290,0.139783,71540.0,71533.0,0.0811]
[1730471372493,0.13845525,71551.0,71534.0,0.2096861]
[1730471372893,0.13845525,71551.0,71525.0,0.002]
[1730471372894,0.1,71548.0,71525.0,0.002]
[1730471373118,0.139797,71532.0,71531.0,0.2096861]
[1730471373516,0.139797,71532.0,71524.0,0.0811]
[1730471373720,0.139802,71530.0,71524.0,0.0811]
[1730471373918,0.41799125,71547.0,71524.0,0.0811]
[1730471374090,0.2096861,71544.0,71524.0,0.0811]
[1730471374292,0.16145525,71543.0,71524.0,0.0811]
[1730471374540,0.16145525,71543.0,71529.0,0.2096861]
[1730471374943,0.16145525,71543.0,71524.0,0.0811]
[1730471375140,0.16145525,71543.0,71530.0,0.2096861]
[1730471375661,0.023,71541.0,71531.0,0.2096861]
[1730471375887,0.023,71539.0,71531.0,0.2096861]
[1730471376073,0.13845525,71538.0,71531.0,0.2096861]
[1730471376209,0.2096861,71551.0,71531.0,0.2096861]
[1730471376420,0.000823,71543.0,71531.0,0.2096861]
[1730471376618,0.000823,71543.0,71532.0,0.2096861]
[1730471376619,0.13845525,71542.0,71532.0,0.2096861]
[1730471377265,0.13845525,71542.0,71532.0,0.2096847]
[1730471377964,0.13845525,71542.0,71532.0,0.2106847]
[1730471378291,0.23845525,71542.0,71532.0,0.2096847]
[1730471379134,0.23845525,71542.0,71532.0,0.2106847]
[1730471379785,0.1,71542.0,71532.0,0.2106847]
[1730471380412,0.1,71542.0,71532.0,0.3012847]
[1730471380640,0.1,71542.0,71532.0,0.3002847]
[1730471381072,0.1,71542.0,71532.0,0.3012847]
[1730471381520,0.1,71542.0,71532.0,0.3002847]
[1730471381724,0.1,71542.0,71532.0,0.3012847]
[1730471382390,0.1,71542.0,71532.0,0.0906]
[1730471383238,0.1,71542.0,71533.0,0.2096861]
[1730471383869,0.1,71542.0,71532.0,0.001]
[1730471384861,0.1,71542.0,71524.0,0.082746]
[1730471385035,0.1,71542.0,71533.0,0.001]
[1730471385519,0.1,71542.0,71531.0,0.2096861]
[1730471385735,0.1100823,71542.0,71531.0,0.2096861]
[1730471385954,0.1,71542.0,71531.0,0.2096861]
[1730471386579,0.1,71542.0,71524.0,0.082746]
[1730471386787,0.1,71542.0,71529.0,0.2096861]
[1730471387438,0.1,71542.0,71532.0,0.001]
[1730471387857,0.100823,71542.0,71532.0,0.001]
[1730471388069,0.100823,71542.0,71529.0,0.2096861]
[1730471388523,0.100823,71542.0,71529.0,0.2106861]
[1730471389149,0.100823,71542.0,71529.0,0.2096861]
[1730471389352,0.100823,71542.0,71529.0,0.2106861]
[1730471391066,0.1109876,71542.0,71529.0,0.2106861]
[1730471391289,0.100823,71542.0,71529.0,0.2096861]
[1730471391503,0.2096861,71540.0,71524.0,0.082746]
[1730471391729,0.023,71538.0,71529.0,0.001]
[1730471391931,0.13845525,71537.0,71529.0,0.001]
[1730471392142,0.100823,71542.0,71525.0,0.2096861]
[1730471392365,0.13845525,71541.0,71525.0,0.2096861]
[1730471392584,0.13845525,71541.0,71529.0,0.001]
[1730471393819,0.13845525,71541.0,71526.0,0.2096861]
[1730471394038,0.02401013,71540.0,71526.0,0.2096861]
[1730471394245,0.13845525,71539.0,71526.0,0.2096861]
[1730471395089,0.13845525,71539.0,71526.0,0.2106861]
[1730471395791,0.13845525,71539.0,71526.0,0.2096861]
[1730471397178,0.13845525,71539.0,71524.0,0.001646]
[1730471397441,0.023,71537.0,71525.0,0.2096861]
[1730471397625,0.13845525,71536.0,71525.0,0.2096861]
[1730471397782,0.023,71535.0,71526.0,0.2106861]
[1730471397985,0.13845525,71534.0,71526.0,0.2106861]
[1730471398187,0.13845525,71534.0,71526.0,0.2096861]
[1730471398813,0.13845525,71534.0,71525.0,0.001]
[1730471398814,0.023,71531.0,71525.0,0.001]
[1730471399144,0.15460078,71534.0,71524.0,0.001646]
[1730471399145,0.123,71529.0,71526.0,0.2096861]
[1730471399342,0.139807,71527.0,71526.0,0.2096861]
[1730471399560,0.139807,71527.0,71524.0,0.001646]
[1730471399561,0.139811,71525.0,71524.0,0.001646]
[1730471399725,0.27826625,71525.0,71524.0,0.001646]
[1730471399930,0.139811,71525.0,71524.0,0.001646]
[1730471400543,0.2096861,71536.0,71524.0,0.001646]
[1730471400753,0.13845525,71535.0,71524.0,0.001646]
[1730471400959,0.4892321,71545.0,71524.0,0.001646]
[1730471401186,0.2096861,71537.0,71524.0,0.001646]
[1730471401392,0.13845525,71536.0,71524.0,0.001646]
[1730471401999,0.13845525,71536.0,71526.0,0.001]
[1730471402202,0.13845525,71536.0,71528.0,0.2096861]
[1730471402475,0.13845525,71536.0,71524.0,0.001646]
[1730471402674,0.2096861,71545.0,71528.0,0.2096861]
[1730471402901,0.2096861,71537.0,71524.0,0.001646]
[1730471403094,0.13845525,71537.0,71528.0,0.2096861]
[1730471403293,0.13845525,71537.0,71524.0,0.001646]
[1730471403519,0.2096861,71545.0,71528.0,0.2096861]
[1730471403783,0.2096861,71561.0,71537.0,0.0824]
[1730471403989,0.2096861,71552.0,71537.0,0.222187]
[1730471404219,0.2096861,71561.0,71539.0,0.279566]
[1730471404435,0.2096861,71551.0,71541.0,0.139779]
[1730471404857,0.2096861,71551.0,71540.0,0.17917366]
[1730471405070,0.2096861,71551.0,71541.0,0.139779]
[1730471405443,0.2096861,71561.0,71541.0,0.27823425]
[1730471407248,0.2096861,71561.0,71542.0,0.1906]
[1730471407468,0.2096861,71553.0,71552.0,0.139758]
[1730471407671,0.2096861,71561.0,71548.0,0.27953]
[1730471407875,0.2096861,71561.0,71550.0,0.139761]
[1730471408047,0.2096861,71561.0,71549.0,0.14255797]
[1730471408276,0.09768451,71599.0,71555.0,0.279505]
[1730471408277,0.2498861,71597.0,71555.0,0.279505]
[1730471408441,0.2498861,71597.0,71564.0,0.139734]
[1730471408442,0.2096861,71571.0,71564.0,0.139734]
[1730471408643,0.2096861,71571.0,71565.0,0.0785]
[1730471408849,0.00392038,71592.0,71565.0,0.0785]
[1730471409072,0.00392038,71592.0,71565.0,0.218232]
[1730471409274,0.2498861,71597.0,71568.0,0.2096861]
[1730471409275,0.2096861,71583.0,71568.0,0.2096861]
[1730471409488,0.2096861,71583.0,71568.0,0.13845525]
[1730471409684,0.2096861,71583.0,71565.0,0.0785]
[1730471409947,0.2096861,71583.0,71566.0,0.279462]
[1730471410197,0.2096861,71583.0,71567.0,0.1161]
[1730471410389,0.2096861,71612.0,71576.0,0.139711]
[1730471410390,0.2096861,71596.0,71576.0,0.139711]
[1730471410723,0.2096861,71596.0,71567.0,0.25455525]
[1730471410724,0.2096861,71583.0,71573.0,0.419148]
[1730471410855,0.13845525,71595.0,71575.0,0.3493991]
[1730471411053,0.13845525,71595.0,71576.0,0.139711]
[1730471411257,0.2096861,71604.0,71573.0,0.41788725]
[1730471411258,0.2096861,71604.0,71578.0,0.2096861]
[1730471411489,0.13845525,71603.0,71582.0,0.139699]
[1730471411660,0.13845525,71603.0,71579.0,0.0823]
[1730471411861,0.13845525,71603.0,71586.0,0.2096861]
[1730471412322,0.000791,71614.0,71586.0,0.2096861]
[1730471412323,0.000791,71614.0,71594.0,0.2096861]
[1730471412491,0.34814135,71613.0,71603.0,0.0796]
[1730471412705,0.13845525,71613.0,71603.0,0.0796]
[1730471413321,0.000791,71614.0,71603.0,0.0796]
[1730471413570,0.000791,71614.0,71606.0,0.2096861]
[1730471413787,0.000791,71614.0,71603.0,0.0796]
[1730471414309,0.2054771,71624.0,71603.0,0.0796]
[1730471414571,0.13845525,71623.0,71603.0,0.0796]
[1730471414773,0.1,71622.0,71606.0,0.2096861]
[1730471414915,0.13845525,71621.0,71606.0,0.2096861]
[1730471416332,0.13845525,71621.0,71606.0,0.2106861]
[1730471417191,0.2401,71617.0,71606.0,0.001]
[1730471417402,0.023,71615.0,71607.0,0.2096861]
[1730471417569,0.13845525,71614.0,71607.0,0.2096861]
[1730471417744,0.13845525,71609.0,71582.0,0.0793]
[1730471417947,0.023,71607.0,71602.0,0.2096861]
[1730471418205,0.023,71605.0,71594.0,0.2096861]
[1730471418449,0.13845525,71604.0,71594.0,0.2096861]
[1730471418821,0.13845525,71604.0,71582.0,0.0793]
[1730471419027,0.0402,71619.0,71595.0,0.2096861]
[1730471419180,0.2096861,71614.0,71595.0,0.2096861]
[1730471419388,0.2096861,71614.0,71597.0,0.2096861]
[1730471419389,0.13845525,71613.0,71597.0,0.2096861]
[1730471420071,0.1,71628.0,71606.0,0.2096861]
[1730471420239,0.1,71628.0,71591.0,0.279364]
[1730471420240,0.2096861,71607.0,71598.0,0.00279308]
[1730471420465,0.13845525,71606.0,71599.0,0.2096861]
[1730471421097,0.13845525,71606.0,71594.0,0.001]
[1730471421314,0.13845525,71606.0,71602.0,0.2096861]
[1730471421547,0.2096861,71622.0,71603.0,0.115]
[1730471421780,0.2096861,71614.0,71603.0,0.115]
[1730471422102,0.2096861,71622.0,71604.0,0.2096861]
[1730471422319,0.2096861,71628.0,71605.0,0.21505525]
[1730471422525,0.319353,71646.0,71612.0,0.2096861]
[1730471422526,0.0402,71646.0,71612.0,0.2096861]
[1730471422678,0.2096861,71625.0,71613.0,0.1412476]
[1730471422846,0.2096861,71651.0,71622.0,0.13962]
[1730471422847,0.000825,71624.0,71622.0,0.13962]
[1730471423047,0.000825,71624.0,71623.0,0.139619]
[1730471423349,0.000825,71624.0,71623.0,0.254319]
[1730471423665,0.000825,71624.0,71623.0,0.39277425]
[1730471424741,0.000825,71624.0,71623.0,0.254319]
[1730471424945,0.000825,71624.0,71623.0,0.1147]
[1730471425351,0.000825,71624.0,71623.0,0.1157]
[1730471425912,0.000825,71624.0,71623.0,0.1147]
[1730471426173,0.000825,71624.0,71623.0,0.1157]
[1730471427046,0.000825,71624.0,71623.0,0.255319]
[1730471427249,0.000791,71644.0,71627.0,0.279224]
[1730471427472,0.2104771,71644.0,71637.0,0.139592]
[1730471427728,0.2096861,71643.0,71629.0,0.279216]
[1730471427950,0.000791,71644.0,71631.0,0.2096861]
[1730471428167,0.000791,71644.0,71633.0,0.2792]
[1730471428384,0.000791,71644.0,71634.0,0.279197]
[1730471428602,0.000791,71644.0,71635.0,0.00279151]
[1730471428826,0.000791,71644.0,71640.0,0.139586]
[1730471429293,0.000791,71644.0,71631.0,0.2096861]
[1730471429505,0.000791,71644.0,71637.0,0.001]
[1730471429865,0.34814135,71643.0,71637.0,0.001]
[1730471430220,0.237,71640.0,71620.0,0.2096861]
[1730471430407,0.023,71638.0,71633.0,0.2096861]
[1730471430705,0.023,71638.0,71620.0,0.2096861]
[1730471430910,0.13845525,71626.0,71612.0,0.2096861]
[1730471431233,0.1,71615.0,71612.0,0.2096861]
[1730471431442,0.023,71614.0,71596.0,0.2096861]
[1730471432284,0.123,71611.0,71596.0,0.2096861]
[1730471432651,0.13845525,71610.0,71605.0,0.2096861]
[1730471432879,0.13845525,71610.0,71596.0,0.2096861]
[1730471433642,0.2096861,71620.0,71596.0,0.2096861]
[1730471433813,0.13845525,71619.0,71597.0,0.13967]
[1730471434021,0.13845525,71619.0,71605.0,0.0814]
[1730471434230,0.2096861,71630.0,71606.0,0.2096861]
[1730471434436,0.13845525,71629.0,71607.0,0.279302]
[1730471434637,0.13845525,71629.0,71609.0,0.1119]
[1730471434841,0.13845525,71629.0,71611.0,0.139642]
[1730471435062,0.000824,71624.0,71609.0,0.1119]
[1730471435234,0.000824,71624.0,71614.0,0.2096861]
[1730471435645,0.000824,71624.0,71615.0,0.1412477]
[1730471436080,0.000824,71624.0,71612.0,0.279279]
[1730471436235,0.000824,71624.0,71614.0,0.2096861]
[1730471436435,0.000824,71624.0,71616.0,0.279267]
[1730471436698,0.000824,71624.0,71619.0,0.279255]
[1730471436904,0.000824,71624.0,71621.0,0.139623]
[1730471437108,0.000824,71624.0,71622.0,0.13962]
[1730471437510,0.000824,71624.0,71623.0,0.14241111]
[1730471438422,0.000824,71624.0,71621.0,0.279244]
[1730471438622,0.000824,71624.0,71623.0,0.001]
[1730471440258,0.000824,71624.0,71609.0,0.1876]
[1730471440427,0.13845525,71623.0,71621.0,0.001]
[1730471440822,0.000824,71624.0,71622.0,0.2096861]
[1730471440991,0.000824,71624.0,71620.0,0.0757]
[1730471441403,0.000824,71624.0,71623.0,0.001]
[1730471441851,0.000824,71624.0,71620.0,0.0757]
[1730471442672,0.000824,71624.0,71614.0,0.0774]
[1730471442880,0.000824,71624.0,71615.0,0.2096861]
[1730471443134,0.000824,71624.0,71620.0,0.001]
[1730471443679,0.000824,71624.0,71614.0,0.0774]
[1730471443897,0.000824,71624.0,71615.0,0.2096861]
[1730471444833,0.13845525,71623.0,71609.0,0.11]
[1730471445084,0.13845525,71623.0,71606.0,0.2096861]
[1730471445085,0.13845525,71623.0,71615.0,0.001]
[1730471445715,0.023,71621.0,71615.0,0.001]
[1730471445909,0.13845525,71620.0,71615.0,0.001]
[1730471446078,0.023,71619.0,71615.0,0.001]
[1730471446302,0.023,71619.0,71596.0,0.2096861]
[1730471446303,0.13845525,71616.0,71608.0,0.2096861]
[1730471446497,0.16145525,71612.0,71608.0,0.2096861]
[1730471446759,0.023,71610.0,71608.0,0.2096861]
[1730471446980,0.023,71610.0,71609.0,0.001]
[1730471447384,0.023,71610.0,71596.0,0.2096861]
[1730471447817,0.023,71610.0,71608.0,0.001]
[1730471448227,0.023,71610.0,71605.0,0.2096861]
[1730471448592,0.023,71608.0,71596.0,0.2096861]
[1730471448791,0.13845525,71607.0,71596.0,0.2096861]
[1730471449848,0.023,71606.0,71596.0,0.2096861]
[1730471450046,0.16145525,71605.0,71596.0,0.2096861]
[1730471450253,0.16145525,71605.0,71604.0,0.002648]
[1730471450884,0.16145525,71605.0,71604.0,0.001648]
[1730471451085,0.20245525,71605.0,71604.0,0.002648]
[1730471451215,0.22021533,71605.0,71604.0,0.002648]
[1730471451416,0.33961533,71605.0,71604.0,0.002648]
[1730471451642,0.33961533,71605.0,71564.0,0.3273861]
[1730471451643,0.27421533,71605.0,71564.0,0.3273861]
[1730471451846,0.27421533,71605.0,71595.0,0.2096861]
[1730471451847,0.13845525,71598.0,71595.0,0.2096861]
[1730471452071,0.13845525,71596.0,71564.0,0.3273861]
[1730471452290,0.03684553,71597.0,71564.0,0.3273861]
[1730471452291,0.023,71587.0,71581.0,0.2096861]
[1730471452471,0.03684553,71597.0,71581.0,0.2096861]
[1730471452673,0.1,71602.0,71564.0,0.2096861]
[1730471452945,0.023,71601.0,71564.0,0.2096861]
[1730471453163,0.13845525,71584.0,71581.0,0.2096861]
[1730471453378,0.13845525,71582.0,71564.0,0.2096861]
[1730471453633,0.023,71583.0,71564.0,0.2096861]
[1730471453634,0.023,71580.0,71574.0,0.2096861]
[1730471453794,0.023,71578.0,71564.0,0.2096861]
[1730471454004,0.023,71578.0,71572.0,0.2096861]
[1730471454202,0.023,71578.0,71564.0,0.2096861]
[1730471454203,0.023,71578.0,71573.0,0.001]
[1730471454681,0.13845525,71576.0,71564.0,0.2096861]
[1730471456480,0.13845525,71576.0,71554.0,0.2894861]
[1730471456481,0.023,71575.0,71554.0,0.2894861]
[1730471456698,0.1,71582.0,71554.0,0.2894861]
[1730471456699,0.13845525,71574.0,71566.0,0.2096861]
[1730471456904,0.13845525,71574.0,71564.0,0.001]
[1730471457313,0.13845525,71574.0,71555.0,0.2096861]
[1730471457950,0.023,71573.0,71564.0,0.001]
[1730471458154,0.13845525,71572.0,71564.0,0.001]
[1730471458353,0.023,71570.0,71555.0,0.2096861]
[1730471458573,0.13845525,71569.0,71555.0,0.2096861]
[1730471458986,0.13845525,71569.0,71556.0,0.2096861]
[1730471459327,0.13845525,71569.0,71554.0,0.0798]
[1730471459328,0.023,71567.0,71554.0,0.0798]
[1730471459489,0.023,71565.0,71547.0,0.2096861]
[1730471459690,0.13845525,71564.0,71555.0,0.2096861]
[1730471459889,0.13845525,71564.0,71555.0,0.001]
[1730471460319,0.13845525,71564.0,71556.0,0.2096861]
[1730471460464,0.13845525,71564.0,71547.0,0.2096861]
[1730471460694,0.13845525,71564.0,71555.0,0.2096861]
[1730471460979,0.13845525,71564.0,71547.0,0.3504531]
[1730471461193,0.2096861,71578.0,71555.0,0.2096861]
[1730471461194,0.023,71577.0,71555.0,0.2096861]
[1730471461514,0.023,71577.0,71549.0,0.279527]
[1730471461515,0.2096861,71569.0,71547.0,0.2096861]
[1730471461723,0.13845525,71568.0,71557.0,0.2096861]
[1730471461944,0.2096861,71567.0,71556.0,0.001]
[1730471462127,0.14626861,71577.0,71556.0,0.001]
[1730471462128,0.13845525,71566.0,71556.0,0.001]
[1730471462462,0.13845525,71566.0,71557.0,0.2096861]
[1730471462897,0.04626861,71577.0,71557.0,0.2096861]
[1730471463136,0.13845525,71576.0,71557.0,0.2096861]
[1730471463349,0.13845525,71576.0,71559.0,0.139744]
[1730471463559,0.13845525,71576.0,71558.0,0.1908]
[1730471463560,0.13845525,71576.0,71558.0,0.470292]
[1730471463761,0.13845525,71576.0,71561.0,0.13974]
[1730471463938,0.13845525,71576.0,71558.0,0.1908]
[1730471464133,0.17326939,71576.0,71558.0,0.1908]
[1730471464483,0.13845525,71576.0,71558.0,0.1908]
[1730471464831,0.13845525,71576.0,71558.0,0.0772]
[1730471464832,0.2326861,71575.0,71558.0,0.0772]
[1730471465036,0.13845525,71574.0,71558.0,0.0772]
[1730471465241,0.023,71572.0,71557.0,0.2096861]
[1730471465474,0.13845525,71571.0,71566.0,0.2096861]
[1730471465645,0.13845525,71571.0,71557.0,0.2096861]
[1730471466260,0.13845525,71571.0,71561.0,0.001]
[1730471466761,0.2096861,71586.0,71565.0,0.2096861]
[1730471466980,0.16145525,71585.0,71557.0,0.2106861]
[1730471467249,0.16145525,71585.0,71567.0,0.0825]
[1730471467250,0.13845525,71585.0,71567.0,0.0825]
[1730471467456,0.13845525,71585.0,71568.0,0.279454]
[1730471467670,0.13845525,71585.0,71570.0,0.139723]
[1730471467874,0.13845525,71585.0,71567.0,0.0825]
[1730471468324,0.13831323,71585.0,71567.0,0.0825]
[1730471468539,0.00209663,71593.0,71575.0,0.139712]
[1730471468753,0.13845525,71592.0,71576.0,0.1175]
[1730471468967,0.13845525,71592.0,71577.0,0.279419]
[1730471469210,0.13845525,71592.0,71577.0,0.139709]
[1730471469422,0.13845525,71592.0,71576.0,0.1175]
[1730471469663,0.13845525,71592.0,71577.0,0.2096861]
[1730471471140,0.13845525,71592.0,71577.0,0.001]
[1730471471141,0.15781414,71591.0,71577.0,0.001]
[1730471471346,0.13845525,71589.0,71577.0,0.001]
[1730471471569,0.15781414,71591.0,71557.0,0.2859861]
[1730471471570,0.123,71584.0,71557.0,0.2859861]
[1730471471739,0.13845525,71580.0,71557.0,0.2859861]
[1730471471987,0.26145525,71576.0,71567.0,0.2096861]
[1730471472205,0.26145525,71576.0,71557.0,0.2096861]
[1730471472404,0.13845525,71570.0,71565.0,0.2096861]
[1730471472999,0.123,71585.0,71557.0,0.2096861]
[1730471473234,0.2096861,71586.0,71557.0,0.2096861]
[1730471473235,0.123,71583.0,71565.0,0.2096861]
[1730471473406,0.2096861,71578.0,71558.0,0.1126]
[1730471473632,0.13845525,71577.0,71565.0,0.2096861]
[1730471473786,0.023,71576.0,71558.0,0.3222861]
[1730471474014,0.13845525,71575.0,71558.0,0.3222861]
[1730471474759,0.13845525,71575.0,71560.0,0.139742]
[1730471474986,0.13845525,71575.0,71558.0,0.3232861]
[1730471475199,0.13845525,71575.0,71560.0,0.279485]
[1730471475405,0.2096861,71586.0,71558.0,0.6017791]
[1730471475623,0.13845525,71585.0,71567.0,0.139728]
[1730471475833,0.13845525,71585.0,71570.0,0.139722]
[1730471475975,0.13845525,71585.0,71566.0,0.2096861]
[1730471476195,0.2096861,71582.0,71566.0,0.2096861]
[1730471476381,0.13845525,71585.0,71566.0,0.3494151]
[1730471476598,0.2096861,71584.0,71566.0,0.2096861]
[1730471476796,0.2096861,71583.0,71571.0,0.13972]
[1730471477034,0.2096861,71594.0,71572.0,0.1926]
[1730471477270,0.2096861,71586.0,71572.0,0.1926]
[1730471477613,0.36910996,71594.0,71572.0,0.5420041]
[1730471477614,0.13845525,71593.0,71572.0,0.5420041]
[1730471478227,0.13845525,71593.0,71572.0,0.4022861]
[1730471478472,0.13845525,71593.0,71580.0,0.2096861]
[1730471478665,0.13845525,71593.0,71572.0,0.4022861]
[1730471478666,0.13845525,71593.0,71577.0,0.139707]
[1730471478937,0.13845525,71593.0,71572.0,0.6817241]
[1730471479143,0.13845525,71593.0,71573.0,0.279434]
[1730471479292,0.13845525,71593.0,71573.0,0.139716]
[1730471479729,0.2096861,71592.0,71573.0,0.139716]
[1730471479934,0.13845525,71591.0,71572.0,0.4022861]
[1730471480166,0.13845525,71591.0,71572.0,0.1926]
[1730471480524,0.13845525,71591.0,71572.0,0.1936]
[1730471480934,0.13845525,71591.0,71572.0,0.1926]
[1730471481351,0.13845525,71589.0,71572.0,0.001]
[1730471481545,0.023,71586.0,71572.0,0.001]
[1730471481781,0.023,71584.0,71572.0,0.001]
[1730471482036,0.023,71582.0,71572.0,0.001]
[1730471482240,0.13845525,71581.0,71571.0,0.2096861]
[1730471482866,0.13845525,71581.0,71561.0,0.0771]
[1730471482867,0.2096861,71580.0,71561.0,0.0771]
[1730471483098,0.13845525,71574.0,71558.0,0.2096861]
[1730471483283,0.26980024,71579.0,71558.0,0.2096861]
[1730471483284,0.023,71570.0,71558.0,0.2096861]
[1730471483520,0.13845525,71569.0,71558.0,0.2096861]
[1730471483734,0.023,71568.0,71558.0,0.2096861]
[1730471483928,0.13845525,71567.0,71558.0,0.2096861]
[1730471484137,0.023,71566.0,71558.0,0.2096861]
[1730471484356,0.023,71564.0,71558.0,0.2096861]
[1730471484554,0.1,71583.0,71558.0,0.2106861]
[1730471484555,0.13845525,71563.0,71558.0,0.2106861]
[1730471484920,0.1,71583.0,71559.0,0.2096861]
[1730471485118,0.2096861,71576.0,71561.0,0.075]
[1730471485339,0.2096861,71575.0,71561.0,0.075]
[1730471485499,0.2096861,71584.0,71562.0,0.2096861]